Cogmind - Beta 16.1 @@@ ROGUE MODE // 2026.04.23 @ 00:11:09 Player: Thqwib-Linux Result: Self-destructed Performance ------------- Evolutions (8) 4000 Regions Visited (20) 4000 Robots Destroyed (144) 720 Value Destroyed (4170) 4170 Prototype IDs (19) 380 Alien Tech Used (4) 800 Bonus (1556) 1556 TOTAL SCORE: 15626 Bonus ------- High Alert Combat Kills 22 Follower Combat Kills 379 Entered Garrisons 200 Entered DSFs 1000 Friendly Fire -45 Cogmind --------- Core Integrity 823/1450 Matter 270/300 Energy 71/100 System Corruption 7% Temperature Cool (0) Movement Core (50) Location -2/Research Parts ------- > --- POWER (2) -------- (None) > --- PROPULSION (8) --- (None) > --- UTILITY (11) ----- Enhanced Optical Array Improved Signal Interpreter Experimental Terrain Scan Processor Advanced Melee Analysis Suite Improved Armor Integrity Analyzer Improved Hacking Suite Improved System Shield > --- WEAPON (2) ------- (None) > --- INVENTORY (5) ---- Quantum Reactor Advanced Weight Redist. System Advanced ECM Suite Advanced Shield Generator Terrabomb Peak State ------------ > --- POWER ------------ Light Antimatter Reactor Micro Antimatter Reactor > --- PROPULSION ------- Improved VTOL Module Cooled Cesium-ion Thruster Field Propulsion Array Field Propulsion Array Field Propulsion Array > --- UTILITY ---------- Advanced Heat Sink Medium Storage Unit Enhanced Optical Array Long-range Sensor Array Improved Signal Interpreter Experimental Terrain Scan Processor Advanced Melee Analysis Suite Improved Armor Integrity Analyzer Improved Hacking Suite Improved Hacking Suite Improved System Shield > --- WEAPON ----------- Sigix Broadsword > --- INVENTORY -------- Improved VTOL Module Advanced Weight Redist. System Stasis Canceller Advanced ECM Suite Graphene Brace Advanced Shield Generator Terrabomb Sigix Broadsword [Rating: 158] Favorites ----------- Power Light Nuclear Core Engine Ion Engine Power Core Light Nuclear Core Reactor Light Antimatter Reactor Propulsion Light Treads Treads Light Treads Leg Aluminum Leg Wheel Compact Wheel Flight Unit Improved VTOL Module Utility High-capacity Storage Unit Device Improved Heat Sink Storage High-capacity Storage Unit Processor Improved Signal Interpreter Hackware Improved Hacking Suite Protection Hardened Light Armor Plating Weapon Assault Rifle Energy Gun Dispersion Rifle Ballistic Gun Assault Rifle Ballistic Cannon Improved Light Cannon Launcher Mini Grenade Launcher Impact Weapon Powered Hammer Slashing Weapon Sigix Broadsword Special Melee Weapon Improved Datajack Build | -11 -10 -10 -9 -9 -9 -8 -8 -8 -7 -7 -7 -7 -7 -6 -5 -5 -4 -3 -3 -2 ------- Run | Yrd Mat Min Mat Min Exi Min Mat Sto Fac Was Fac DSF Gar Fac Fac DSF Fac Res Qua Res Slots Evolved 16 | . . . 2 . . . 2 . 2 . . . . 2 2 . 2 2 . 2 Power 1 | . . . . . . . . . . . . . . . 1 . . . . . Propulsion 6 | . . . 1 . . . 1 . 1 . . . . 1 1 . . . . 1 Utility 9 | . . . 1 . . . 1 . 1 . . . . 1 . . 2 2 . 1 Weapon . | . . . . . . . . . . . . . . . . . . . . . Parts Attached 166 | 3 18 4 9 1 . 3 25 35 12 2 . 2 2 . . . 13 11 14 12 Power 24 | . 2 . 1 1 . . 5 4 1 . . 1 . . . . 2 2 3 2 Engine 7 | . 1 . 1 . . . 2 2 . . . . . . . . . 1 . . Core 11 | . 1 . . 1 . . 3 2 1 . . 1 . . . . 1 . 1 . Reactor 6 | . . . . . . . . . . . . . . . . . 1 1 2 2 Propulsion 47 | 2 7 1 3 . . 2 7 15 5 . . . . . . . 2 1 . 2 Treads 23 | 1 4 1 1 . . 1 3 12 . . . . . . . . . . . . Leg . | . . . . . . . . . . . . . . . . . . . . . Wheel 13 | 1 3 . 1 . . 1 4 3 . . . . . . . . . . . . Hover . | . . . . . . . . . . . . . . . . . . . . . Flight 11 | . . . 1 . . . . . 5 . . . . . . . 2 1 . 2 Utility 59 | 1 5 2 2 . . . 7 8 5 2 . 1 . . . . 5 6 8 7 Device 19 | 1 1 2 . . . . 2 2 2 . . . . . . . 1 1 3 4 Storage 7 | . 2 . . . . . . . 2 . . . . . . . 1 . 1 1 Processor 7 | . . . 1 . . . . . 1 . . . . . . . 1 . 2 2 Hackware 9 | . . . . . . . . . . 1 . . . . . . 2 5 1 . Protection 17 | . 2 . 1 . . . 5 6 . 1 . 1 . . . . . . 1 . Artifact . | . . . . . . . . . . . . . . . . . . . . . Weapon 36 | . 4 1 3 . . 1 6 8 1 . . . 2 . . . 4 2 3 1 Energy Gun 4 | . . . . . . . . . . . . . . . . . 3 1 . . Energy Cannon . | . . . . . . . . . . . . . . . . . . . . . Ballistic Gun 21 | . 4 . 2 . . 1 5 7 . . . . 2 . . . . . . . Ballistic Cannon 2 | . . . 1 . . . 1 . . . . . . . . . . . . . Launcher 2 | . . 1 . . . . . . . . . . . . . . 1 . . . Special Weapon . | . . . . . . . . . . . . . . . . . . . . . Impact Weapon 2 | . . . . . . . . . . . . . . . . . . . 1 1 Slashing Weapon 4 | . . . . . . . . 1 . . . . . . . . . 1 2 . Piercing Weapon . | . . . . . . . . . . . . . . . . . . . . . Special Melee Weapon 1 | . . . . . . . . . 1 . . . . . . . . . . . Unidentified Prototypes 9 | . . 1 1 . . . . . . 1 . . . . . . 1 . 4 1 Parts Lost 40 | . 4 . . . . 2 4 8 . . . . . . . . 7 2 . 13 Power 7 | . 1 . . . . . 1 1 . . . . . . . . 1 . . 3 Propulsion 15 | . 1 . . . . 1 2 4 . . . . . . . . 2 . . 5 Utility 10 | . 2 . . . . . 1 1 . . . . . . . . 2 1 . 3 Weapon 8 | . . . . . . 1 . 2 . . . . . . . . 2 1 . 2 Highest Loss Streak 10 | . 2 . . . . 1 2 4 . . . . . . . . 5 1 . 10 To Critical Strikes . | . . . . . . . . . . . . . . . . . . . . . Average Backups 14 | 5 8 15 18 20 20 18 18 18 11 10 10 10 9 9 10 10 8 6 9 6 Power . | 1 . 1 1 1 1 1 . . 1 1 1 1 1 1 1 1 . . . . Propulsion 4 | 3 3 7 7 8 8 7 5 5 . . 1 1 1 2 2 2 1 1 . . Utility 4 | . . 2 5 6 6 6 6 8 3 3 3 3 3 2 3 3 2 2 4 4 Weapon 4 | 1 2 4 4 5 5 4 5 4 5 4 4 4 4 4 4 4 3 2 2 . Tool/Special . | . . . . . . . . . . . . . . . . . . . . . Unused Backups 30 | . 3 . 6 . . 2 5 6 1 1 . . . . . . 1 1 1 3 Power 2 | . 1 . . . . 1 . . . . . . . . . . . . . . Propulsion 8 | . . . 2 . . . 1 4 . . . . . . . . . 1 . . Utility 9 | . 1 . . . . 1 1 1 1 1 . . . . . . . . 1 2 Weapon 10 | . 1 . 4 . . . 3 1 . . . . . . . . 1 . . . Tool/Special 1 | . . . . . . . . . . . . . . . . . . . . 1 Average Slot Usage (%) 91 | . 97 100 99 100 100 99 92 97 96 100 100 100 92 66 58 58 64 76 82 78 Engine 5 | . 9 14 11 1 . . 5 5 1 . . . . . . . . . . . Core 3 | . 4 . . 9 11 11 3 3 5 7 7 7 6 . . . 3 . 1 . Treads 11 | . 14 14 11 11 11 11 18 17 1 . . . . . . . . . . . Wheel 11 | . 13 14 22 22 22 22 10 16 1 . . . . . . . . . . . Flight 6 | . . . . . . . . . 32 38 38 38 36 26 23 23 23 22 23 20 Device 8 | . 10 14 . . . . 8 10 19 20 15 13 1 . . . 3 9 7 7 Storage 9 | . 14 14 11 11 11 11 9 9 7 7 7 7 7 6 5 5 5 4 4 4 Processor 4 | . . . 10 11 11 11 . . 5 7 7 7 7 6 5 5 8 9 13 18 Hackware 2 | . . . . . . . . . . 2 7 7 7 6 5 5 7 13 15 12 Protection 8 | . 1 . 10 11 11 11 17 15 2 . . 1 9 6 5 5 1 . 1 1 Ballistic Gun 14 | . 27 27 16 11 11 10 15 15 8 7 7 7 11 13 11 11 4 . . . Ballistic Cannon 2 | . . . 5 11 11 11 2 2 . . . . . . . . . . . . Peak Build Rating 158 | 7 11 14 18 19 19 19 28 36 45 48 48 50 53 40 40 40 81 117 141 158 Average Rating 36 | 6 8 10 16 18 19 18 23 28 41 44 48 48 47 39 40 40 50 98 125 138 On Entrance 39 | 6 7 10 11 17 19 19 18 27 36 42 48 48 49 40 40 40 40 67 113 140 Avg Prop Armor Cover (%) 10 | 11 10 11 8 8 8 8 11 10 10 . . 4 . . . . . . . 7 Naked Turns . | . . . . . . . . . . . . . . . . . . . . . Heaviest Build 84 | 15 50 50 57 57 57 57 81 84 83 23 22 25 25 20 20 20 30 45 49 49 Greatest Support 58 | 10 40 16 32 32 32 32 40 40 32 25 25 25 25 20 20 20 35 46 49 58 Greatest Overweight (x) 6 | 1 4 3 1 1 1 2 4 6 2 . . 1 1 . . . 1 . 1 1 Average Overweight (x) 1 | 1 2 3 1 1 1 1 2 2 . . . . . . . . . . . . Largest Inventory Capacity 20 | 8 20 20 20 20 20 20 20 20 20 10 10 10 10 10 10 10 10 10 10 10 Average Capacity 16 | 8 15 20 20 20 20 20 20 20 11 10 10 10 10 10 10 10 10 10 10 9 Most Carried 20 | 6 14 18 20 20 20 20 20 20 20 10 10 10 10 10 10 10 10 10 10 10 Average Carried 14 | 4 8 15 18 20 20 18 18 18 10 9 10 9 9 9 10 10 8 7 9 7 Final Capacity 20 | 8 20 20 20 20 20 20 20 20 10 10 10 10 10 10 10 10 10 10 10 5 Final Carried 20 | 4 12 18 20 20 20 17 20 20 10 10 10 10 10 10 10 10 7 9 7 5 Class Distribution -------------------- 63% | Mutant 10% | Hacker-Scout 7% | Commander-Mutant 5% | Sprinter 4% | Scavenger-Mutant 3% | Hacker-Sprinter Dominant Class ---------------- Mutant | -10/Materials Mutant | -10/Mines Mutant | -9/Materials Mutant | -9/Mines Mutant | -9/Exiles Mutant | -8/Mines Mutant | -8/Materials Commander-Mutant | -8/Storage Commander-Scout | -7/Factory Commander-Scout | -7/Waste Sprinter | -7/Factory Mutant | -7/DSF Sprinter | -7/Garrison Sprinter | -6/Factory Sprinter | -5/Factory Sprinter | -5/DSF Hacker-Scout | -4/Factory Hacker-Scout | -3/Research Hacker-Scout | -3/Quarantine Hacker-Sprinter | -2/Research Resources | -11 -10 -10 -9 -9 -9 -8 -8 -8 -7 -7 -7 -7 -7 -6 -5 -5 -4 -3 -3 -2 ----------- Run | Yrd Mat Min Mat Min Exi Min Mat Sto Fac Was Fac DSF Gar Fac Fac DSF Fac Res Qua Res Matter Collected 5251 | 195 554 274 274 42 . 206 1148 1310 78 . . . . . . . 312 191 469 198 Remotely . | . . . . . . . . . . . . . . . . . . . . . Salvage Created 5929 | 18 711 223 270 82 . 201 1293 1586 78 . . . 44 . . . 234 203 618 368 Parts 302 | 3 34 15 16 4 . 10 71 74 7 . . . 3 . . . 7 13 30 15 Haulers Intercepted 17 | . 2 . 2 . . . 4 5 1 . . . . . . . 1 . 1 1 Recyclers Shooed 4 | . . . . . . . 1 2 . . . . . . . . . 1 . . Parts Field Recycled . | . . . . . . . . . . . . . . . . . . . . . Retrieved Matter . | . . . . . . . . . . . . . . . . . . . . . Parts Self-Destructed . | . . . . . . . . . . . . . . . . . . . . . Prevented . | . . . . . . . . . . . . . . . . . . . . . Parts Restored . | . . . . . . . . . . . . . . . . . . . . . Kills | -11 -10 -10 -9 -9 -9 -8 -8 -8 -7 -7 -7 -7 -7 -6 -5 -5 -4 -3 -3 -2 ------- Run | Yrd Mat Min Mat Min Exi Min Mat Sto Fac Was Fac DSF Gar Fac Fac DSF Fac Res Qua Res Combat Hostiles Destroyed 87 | . 15 5 3 2 . 4 24 22 . . . . 1 . . . . . 6 5 Melee 8 | . . . . . . . . . . . . . . . . . . . 3 5 Guns 66 | . 15 4 3 1 . 1 22 16 . . . . 1 . . . . . 3 . Cannons 12 | . . . . 1 . 3 2 6 . . . . . . . . . . . . AOE 1 | . . 1 . . . . . . . . . . . . . . . . . . Classes Destroyed 14 | 1 5 . 1 . . 3 2 . . . . . . . . . . . 1 1 Worker 10 | . 2 1 1 . . 1 1 3 1 . . . . . . . . . . . Builder 3 | . . . . . . 1 . 1 . . . . . . . . . 1 . . Tunneler 5 | 1 . 1 . . . 1 1 . . . . . . . . . . 1 . . Hauler 17 | . 2 . 2 . . . 4 5 1 . . . . . . . 1 . 1 1 Recycler 7 | . . . . . . . 2 2 . . . . . . . . 1 1 1 . Operator 9 | . . . . . . . 3 3 . . . . . . . . . 2 1 . Watcher 3 | . 2 . . . . . . . . . . . . . . . . . 1 . Swarmer 18 | . 3 3 . . . . 7 . . . . . . . . . . . 3 2 Cutter 1 | . . . . . . . . . . . . . . . . . . . . 1 Grunt 49 | . 12 3 2 2 . 2 11 16 . . . . . . . . . . 1 . Duelist 4 | . . . . . . 1 2 1 . . . . . . . . . . . . Sentry 12 | . . . 1 . . . 3 7 . . . . . . . . . . . 1 Hunter 3 | . . . . . . 1 1 . . . . . 1 . . . . . . . Programmer 3 | . . . . . . . . . . . . . . . . . . . 2 1 Best Kill Streak 7 | 1 4 2 2 2 . 3 5 7 1 . . . 1 . . . 1 3 3 1 Combat Bots Only 6 | . 4 2 1 2 . 3 5 6 . . . . 1 . . . . . 3 1 Max Kills in Single Turn 2 | 1 2 2 1 1 . 1 2 2 1 . . . 1 . . . 1 1 1 1 Gunslinging 1 | . . 1 . . . . . . . . . . . . . . . . . . Exploded 1 | . . 1 . . . . . . . . . . . . . . . . . . Melee 1 | . . . . . . . . . . . . . . . . . . . 1 1 Uniques/NPCs Destroyed . | . . . . . . . . . . . . . . . . . . . . . Combat | -11 -10 -10 -9 -9 -9 -8 -8 -8 -7 -7 -7 -7 -7 -6 -5 -5 -4 -3 -3 -2 -------- Run | Yrd Mat Min Mat Min Exi Min Mat Sto Fac Was Fac DSF Gar Fac Fac DSF Fac Res Qua Res Hostile Shots Fired 1004 | . 103 23 12 5 . 30 171 193 6 . . 1 15 33 . 7 72 16 71 246 Missed 339 | . 24 6 5 1 . 7 38 45 3 . . 1 4 21 . 3 43 8 20 110 Hits 665 | . 79 17 7 4 . 23 133 148 3 . . . 11 12 . 4 29 8 51 136 Melee 25 | . . . . . . 3 6 3 . . . . 6 . . . . . . 7 Projectile 640 | . 79 17 7 4 . 20 127 145 3 . . . 5 12 . 4 29 8 51 129 AOE 2 | . . . . . . . . . . . . . . . . . . . . 2 Critical Strikes 37 | . 1 . 1 . . 1 4 8 . . . . 1 . . . 1 . 8 12 Actively Blocked 3 | . . . . . . . . . . . . . . . . . . . . 3 Part Disruptions 1 | . . . . . . . . . . . . . . . . . . . . 1 Damage Taken 10551 | . 951 169 103 61 . 403 1435 2249 16 . . . 256 121 . 248 578 233 910 2818 Core 1669 | . 185 10 25 . . 16 140 322 . . . . 96 18 . 76 67 63 101 550 Absorbed by Shields 1126 | . . . . . . . 475 136 . . . . 66 . . 35 . . 196 218 Ignored by Resistances 19 | . . . . . . . . 19 . . . . . . . . . . . . Regen/Repaired (Parts) 1083 | . 111 . . . . . . . 9 . . . . . . . . 101 362 500 Core Remaining (%) 75 | 100 . 22 . . . 89 . 16 . . . . 86 97 . 92 94 . 87 . Volleys Fired 447 | 1 77 14 18 4 . 22 132 144 . . . . 10 . . . 2 14 9 . Largest 2 | 2 2 2 2 2 . 2 2 2 . . . . 2 . . . 2 2 2 . Hottest 176 | 40 40 40 58 58 . 58 56 56 . . . . 50 . . . 176 176 176 . Shots Fired 876 | 2 153 27 36 8 . 43 263 288 . . . . 20 . . . 3 15 18 . Gun 738 | 2 153 26 29 4 . 21 229 228 . . . . 20 . . . 2 6 18 . Cannon 127 | . . . 7 4 . 22 34 60 . . . . . . . . . . . . Launcher 11 | . . 1 . . . . . . . . . . . . . . 1 9 . . Special . | . . . . . . . . . . . . . . . . . . . . . Kinetic 839 | 2 153 26 36 8 . 43 263 288 . . . . 20 . . . . . . . Thermal 26 | . . . . . . . . . . . . . . . . . 2 6 18 . Explosive 11 | . . 1 . . . . . . . . . . . . . . 1 9 . . Electromagnetic . | . . . . . . . . . . . . . . . . . . . . . Robot Hit Streak 27 | 2 9 5 5 7 . 7 27 15 . . . . 8 . . . 1 5 5 . Robot Miss Streak 6 | . 4 2 3 1 . 2 6 5 . . . . 1 . . . 1 1 4 . Penetration Max . | . . . . . . . . . . . . . . . . . . . . . Secondary Targets 5 | . . 1 . . . . 2 1 . . . . 1 . . . . . . . Max Gunslinging Chain 1 | . . 1 . . . . 1 1 . . . . 1 . . . . . . . Shots Hit Robots 626 | 2 94 14 20 6 . 29 171 209 3 . . . 18 . . . 3 6 29 22 Core Hits 239 | 1 35 11 8 3 . 12 61 75 2 . . . 6 . . . 1 8 12 4 Critical Kills 4 | . . . . . . . 2 . . . . . . . . . . . 2 . Critical Parts Destroyed 2 | . . . . . . . . . . . . . . . . . . . 2 . Critical Strikes 12 | . . . . 1 . . 2 3 . . . . . . . . . . 5 1 Destroy 6 | . . . . . . . 2 . . . . . . . . . . . 4 . Blast 4 | . . . . 1 . . . 3 . . . . . . . . . . . . Sever 2 | . . . . . . . . . . . . . . . . . . . 1 1 Melee Attacks 101 | . . . . . . . . 1 5 . . . 5 . . . 4 . 37 49 Impact . | . . . . . . . . . . . . . . . . . . . . . Slashing 100 | . . . . . . . . 1 4 . . . 5 . . . 4 . 37 49 Piercing . | . . . . . . . . . . . . . . . . . . . . . Sneak Attacks 9 | . . . . . . . . . 3 . . . . . . . 2 . 3 1 Combat Hostiles . | . . . . . . . . . . . . . . . . . . . . . Follow-up Attacks . | . . . . . . . . . . . . . . . . . . . . . Damage Inflicted 13982 | 25 1515 293 337 125 . 524 2785 3547 140 . . . 281 . . . 174 388 2036 1812 Guns 7843 | 25 1241 204 316 56 . 212 2388 2709 . . . . 281 . . . 33 135 243 . Cannons 1613 | . . . 21 69 . 312 384 827 . . . . . . . . . . . . Explosions 616 | . 274 89 . . . . . . . . . . . . . . . 253 . . Melee 3886 | . . . . . . . . . 140 . . . . . . . 141 . 1793 1812 Ramming 24 | . . . . . . . 13 11 . . . . . . . . . . . . Kinetic 9045 | 25 1241 204 337 125 . 524 2772 3536 . . . . 281 . . . . . . . Thermal 411 | . . . . . . . . . . . . . . . . . 33 135 243 . Explosive 616 | . 274 89 . . . . . . . . . . . . . . . 253 . . Electromagnetic . | . . . . . . . . . . . . . . . . . . . . . Impact . | . . . . . . . . . . . . . . . . . . . . . Slashing 3886 | . . . . . . . . . 140 . . . . . . . 141 . 1793 1812 Piercing . | . . . . . . . . . . . . . . . . . . . . . Highest Corruption 7 | . 1 1 . 1 1 1 . . . . . . . . . . 7 . 4 7 Average Corruption 1 | . 1 1 . 1 1 1 . . . . . . . . . . 2 . 3 5 Corruption Purged . | . . . . . . . . . . . . . . . . . . . . . Corruption Blocked . | . . . . . . . . . . . . . . . . . . . . . Effects 25 | . 5 6 . . 2 2 . . . . . . . . . . 4 . 3 3 Message Errors 6 | . 2 . . . 1 . . . . . . . . . . . 1 . 1 1 Matter Fused 8 | . 1 2 . . 1 1 . . . . . . . . . . 2 . 1 . Heat Flow Errors 3 | . . 1 . . . 1 . . . . . . . . . . . . 1 . Energy Discharges 3 | . 1 1 . . . . . . . . . . . . . . . . . 1 Parts Fused 1 | . . 1 . . . . . . . . . . . . . . . . . . Data Loss (minor) 2 | . . . . . . . . . . . . . . . . . 1 . . 1 Alerts 1 | . . 1 . . . . . . . . . . . . . . . . . . Weapon Failures 1 | . 1 . . . . . . . . . . . . . . . . . . . Overload Shots . | . . . . . . . . . . . . . . . . . . . . . Overflow Damage 757 | . . . . . . 3 35 13 . . . . . . . . 46 24 251 385 Projectiles 51 | . . . . . . 3 35 13 . . . . . . . . . . . . Explosions 24 | . . . . . . . . . . . . . . . . . . 24 . . Melee 682 | . . . . . . . . . . . . . . . . . 46 . 251 385 Knockbacks 17 | . . . . 1 . 2 6 8 . . . . . . . . . . . . Impact . | . . . . . . . . . . . . . . . . . . . . . Kinetic 15 | . . . . 1 . 2 6 6 . . . . . . . . . . . . Secondary 2 | . . . . . . . . 2 . . . . . . . . . . . . Self-Inflicted Damage 74 | . . . . . . . . . . . . . . . . . . 74 . . Shots 1 | . . . . . . . . . . . . . . . . . . 1 . . Rammed 5 | . . . . . . . 3 2 . . . . . . . . . . . . Targets Rammed 5 | . . . . . . . 3 2 . . . . . . . . . . . . Kicked . | . . . . . . . . . . . . . . . . . . . . . Crushed . | . . . . . . . . . . . . . . . . . . . . . Highest Temperature 265 | . 49 263 32 64 . 265 150 20 . . . . 91 . . . 17 . 221 136 Average Temperature 36 | . 22 144 14 37 . 93 23 7 . . . . 30 . . . 17 . 125 33 Received Heat Transfer 2836 | . 525 63 42 30 . 90 501 1284 . . . . . 42 . . 57 39 88 75 Siege Activations . | . . . . . . . . . . . . . . . . . . . . . Martial Activations . | . . . . . . . . . . . . . . . . . . . . . Shielding Activations . | . . . . . . . . . . . . . . . . . . . . . Robots Disrupted . | . . . . . . . . . . . . . . . . . . . . . Combat Hostiles . | . . . . . . . . . . . . . . . . . . . . . Robots Corrupted . | . . . . . . . . . . . . . . . . . . . . . Combat Hostiles . | . . . . . . . . . . . . . . . . . . . . . Parts Fried . | . . . . . . . . . . . . . . . . . . . . . Impact Corruptions . | . . . . . . . . . . . . . . . . . . . . . Robots Melted . | . . . . . . . . . . . . . . . . . . . . . Combat Hostiles . | . . . . . . . . . . . . . . . . . . . . . Parts Melted 1 | . . . . . . . . . . . . . . . . . . 1 . . Heat Transferred 555 | . . . . . . . . . . . . . . . . . 37 185 333 . Parts Sabotaged . | . . . . . . . . . . . . . . . . . . . . . Parts Stolen . | . . . . . . . . . . . . . . . . . . . . . Parts Stripped . | . . . . . . . . . . . . . . . . . . . . . Power Chain Reactions . | . . . . . . . . . . . . . . . . . . . . . Alert | -11 -10 -10 -9 -9 -9 -8 -8 -8 -7 -7 -7 -7 -7 -6 -5 -5 -4 -3 -3 -2 ------- Run | Yrd Mat Min Mat Min Exi Min Mat Sto Fac Was Fac DSF Gar Fac Fac DSF Fac Res Qua Res Maximum Alert Level 2 | . 1 . . . . . 1 2 1 . . . . . . . . 1 . 2 Low Security (%) 80 | 100 95 100 100 100 . 100 82 56 81 100 100 100 100 100 100 100 100 13 100 35 Level 1 18 | . 4 . . . . . 17 37 18 . . . . . . . . 86 . 61 Level 2 1 | . . . . . . . . 5 . . . . . . . . . . . 2 Level 3 . | . . . . . . . . . . . . . . . . . . . . . Level 4 . | . . . . . . . . . . . . . . . . . . . . . Level 5 . | . . . . . . . . . . . . . . . . . . . . . High Security . | . . . . . . . . . . . . . . . . . . . . . Max Security . | . . . . . . . . . . . . . . . . . . . . . Peak Influence 517 | 5 216 82 110 66 . 51 305 517 217 25 22 8 51 160 78 69 158 367 160 414 Initial 217 | . . 14 . 16 . . 9 127 217 20 10 8 6 26 78 54 35 39 131 69 Average 116 | 2 125 14 50 18 . 9 84 209 163 18 13 8 30 57 78 62 85 288 114 233 Influence Increases 5553 | 5 575 182 256 50 . 116 832 1178 31 15 12 . 45 274 . 15 429 553 308 677 Destroy 0b10 Robot/C 2000 | . 300 140 100 40 . 80 480 620 . . . . 20 . . . . . 120 100 Destroy 0b10 Robot/NC 270 | 5 30 10 15 . . 15 55 75 10 . . . . . . . 10 20 20 5 Destroy Leader 532 | . 78 20 24 10 . 20 118 192 2 . . . 10 . . . 2 . 24 32 Allied During Kill 216 | . . 4 4 . . . . 208 . . . . . . . . . . . . Successful Hack 231 | . 25 . 50 . . . 19 14 3 . 12 . . 19 . . 24 26 12 27 Select Force Hacks 30 | . 30 . . . . . . . . . . . . . . . . . . . Disable Machine 225 | . 15 . 15 . . . 15 45 15 . . . 15 . . . . 30 75 . Destroy Structure 309 | . 22 8 3 . . 1 10 9 1 . . . . . . . 18 192 12 33 Partial Spotted 255 | . . . . . . . . . . 15 . . . 30 . . 75 90 . 45 Lose Combat Pursuer 1485 | . 75 . 45 . . . 135 15 . . . . . 225 . 15 300 195 45 435 Influence Decreases 5177 | 5 537 220 214 92 . 91 554 1002 452 58 15 4 2 165 82 24 421 396 419 424 Entered New Map 913 | . . 24 . 26 . . 16 176 262 38 5 4 2 25 82 24 34 38 103 54 Time Decay 3137 | 5 497 196 194 66 . 81 412 556 110 20 10 . . 140 . . 180 238 202 230 Search Patrol Dispatched 100 | . . . . . . . . . . . . . . . . . . 100 . . Lost Part 390 | . 40 . . . . 10 40 80 . . . . . . . . 70 20 . 130 Lost Ally 150 | . . . 20 . . . . 40 80 . . . . . . . . . . 10 Purge Threat 487 | . . . . . . . 86 150 . . . . . . . . 137 . 114 . Squads Dispatched 26 | . 3 . . . . . 2 5 1 . . . . 2 . 1 3 2 2 5 Investigation 3 | . 2 . . . . . . 1 . . . . . . . . . . . . Extermination 9 | . . . . . . . . . . . . . . 1 . . 2 2 2 2 Reinforcement 13 | . 1 . . . . . 2 3 1 . . . . 1 . 1 1 . . 3 Assault . | . . . . . . . . . . . . . . . . . . . . . Garrison 1 | . . . . . . . . 1 . . . . . . . . . . . . Intercept . | . . . . . . . . . . . . . . . . . . . . . Searches Triggered 1 | . . . . . . . . . . . . . . . . . . 1 . . Construction Impeded . | . . . . . . . . . . . . . . . . . . . . . Haulers Reinforced . | . . . . . . . . . . . . . . . . . . . . . Active Scanning Responses . | . . . . . . . . . . . . . . . . . . . . . Cargo Convoy Interrupts . | . . . . . . . . . . . . . . . . . . . . . Stealth | -11 -10 -10 -9 -9 -9 -8 -8 -8 -7 -7 -7 -7 -7 -6 -5 -5 -4 -3 -3 -2 --------- Run | Yrd Mat Min Mat Min Exi Min Mat Sto Fac Was Fac DSF Gar Fac Fac DSF Fac Res Qua Res Distress Signals 21 | . 3 . . . . . 4 2 1 . . . . 2 . . 1 1 1 6 Communications Jammed . | . . . . . . . . . . . . . . . . . . . . . Distress Signals . | . . . . . . . . . . . . . . . . . . . . . Times Spotted 294 | . 28 8 9 2 . 4 44 47 1 4 . . 4 18 . 2 29 18 12 64 Peak Tracking Total 15 | . 4 3 3 2 . 3 7 5 1 5 . 1 4 9 . 1 11 7 4 15 Tactical Retreats 45 | . 4 . 2 . . . 6 1 . . . . . 5 . 1 8 4 2 12 ECM-based Alert Blocks 8 | . . . . . . . . . . . . . . . . . . . . 8 Traps | -11 -10 -10 -9 -9 -9 -8 -8 -8 -7 -7 -7 -7 -7 -6 -5 -5 -4 -3 -3 -2 ------- Run | Yrd Mat Min Mat Min Exi Min Mat Sto Fac Was Fac DSF Gar Fac Fac DSF Fac Res Qua Res Traps Triggered 12 | . 2 . . . . . . 4 1 . . . 1 . . 1 1 . . 2 Indirectly . | . . . . . . . . . . . . . . . . . . . . . Trap Hack Attempts . | . . . . . . . . . . . . . . . . . . . . . Triggered . | . . . . . . . . . . . . . . . . . . . . . Disarmed . | . . . . . . . . . . . . . . . . . . . . . Reprogrammed . | . . . . . . . . . . . . . . . . . . . . . Reused . | . . . . . . . . . . . . . . . . . . . . . Traps Extracted . | . . . . . . . . . . . . . . . . . . . . . Installed . | . . . . . . . . . . . . . . . . . . . . . Triggered . | . . . . . . . . . . . . . . . . . . . . . Machines | -11 -10 -10 -9 -9 -9 -8 -8 -8 -7 -7 -7 -7 -7 -6 -5 -5 -4 -3 -3 -2 ---------- Run | Yrd Mat Min Mat Min Exi Min Mat Sto Fac Was Fac DSF Gar Fac Fac DSF Fac Res Qua Res Machines Disabled 15 | . 1 . 1 . . . 1 3 1 . . . 1 . . . . 2 5 . Max in Single Turn 1 | . 1 . . . . . 1 1 1 . . . 1 . . . . 1 1 . Garrison Access 1 | . . . . . . . . . . . . . . . . . . . . 1 Machines Repaired . | . . . . . . . . . . . . . . . . . . . . . Machines Dismantled . | . . . . . . . . . . . . . . . . . . . . . Machines Sabotaged . | . . . . . . . . . . . . . . . . . . . . . Overloaded Fab Kills . | . . . . . . . . . . . . . . . . . . . . . Hacking | -11 -10 -10 -9 -9 -9 -8 -8 -8 -7 -7 -7 -7 -7 -6 -5 -5 -4 -3 -3 -2 --------- Run | Yrd Mat Min Mat Min Exi Min Mat Sto Fac Was Fac DSF Gar Fac Fac DSF Fac Res Qua Res Machines Accessed 64 | . 8 1 4 1 1 1 8 6 3 . 2 . . 6 1 . 5 7 8 2 Terminals 45 | . 6 . 4 . . 1 7 4 2 . 2 . . 3 1 . 4 4 7 . Fabricators 1 | . . . . . . . . . . . . . . 1 . . . . . . Repair Stations 8 | . 1 . . . . . . 1 1 . . . . . . . 1 2 1 1 Recycling Units 3 | . 1 . . . . . . . . . . . . 2 . . . . . . Scanalyzers 2 | . . . . . . . 1 . . . . . . . . . . 1 . . Garrison Access 2 | . . . . . . . . 1 . . . . . . . . . . . 1 Total Hacks 174 | . 26 1 17 1 1 1 25 18 7 . 5 . . 13 1 . 9 19 25 5 Successful 97 | . 16 1 12 1 1 . 13 7 3 . 2 . . 7 1 . 8 10 12 3 Failed 74 | . 9 . 5 . . 1 11 11 4 . 3 . . 6 . . 1 9 12 2 Catastrophic 12 | . . . . . . . 2 3 . . . . . 1 . . . 3 3 . Database Lockouts 3 | . 1 . . . . . 1 . . . . . . . . . . . 1 . Manual 92 | . 14 . 15 . . 1 19 7 2 . 3 . . 7 . . 3 7 14 . Terminals 128 | . 20 . 17 . . 1 21 14 4 . 5 . . 7 1 . 7 10 21 . Fabricators 2 | . . . . . . . . . . . . . . 2 . . . . . . Repair Stations 26 | . 5 . . . . . . 3 3 . . . . . . . 2 6 4 3 Recycling Units 5 | . 1 . . . . . . . . . . . . 4 . . . . . . Scanalyzers 7 | . . . . . . . 4 . . . . . . . . . . 3 . . Garrison Access 3 | . . . . . . . . 1 . . . . . . . . . . . 2 Terminal Hacks 39 | . 5 1 8 1 1 . 5 3 . . 1 . . 1 1 . 4 2 6 . Record 2 | . . . . . 1 . . . . . . . . . . . 1 . . . Part Schematic 1 | . . . . . . . . . . . . . . . . . 1 . . . Robot Analysis 5 | . . . 4 . . . . 1 . . . . . . . . . . . . Prototype ID Bank 9 | . 2 . 3 . . . 2 1 . . . . . . . . . . 1 . Open Door 2 | . . 1 . 1 . . . . . . . . . . . . . . . . Open DSF 2 | . . . . . . . . . . . 1 . . . 1 . . . . . Recycling Unit Index 1 | . . . . . . . . . . . . . . 1 . . . . . . Alert Level 5 | . . . . . . . . . . . . . . . . . 1 2 2 . Unreport Threat 5 | . . . . . . . 1 1 . . . . . . . . 1 . 2 . Dispatch Records 1 | . 1 . . . . . . . . . . . . . . . . . . . Transport Status 1 | . . . . . . . 1 . . . . . . . . . . . . . Hauler Manifests 1 | . 1 . . . . . . . . . . . . . . . . . . . Zone Layout 4 | . 1 . 1 . . . 1 . . . . . . . . . . . 1 . Fabricator Hacks 1 | . . . . . . . . . . . . . . 1 . . . . . . Network Status 1 | . . . . . . . . . . . . . . 1 . . . . . . Repair Station Hacks 19 | . 4 . . . . . . 1 2 . . . . . . . 2 5 3 2 Scan Component 11 | . 2 . . . . . . 1 1 . . . . . . . 1 3 2 1 Repair 8 | . 2 . . . . . . . 1 . . . . . . . 1 2 1 1 Recycling Unit Hacks 2 | . . . . . . . . . . . . . . 2 . . . . . . Process 1 | . . . . . . . . . . . . . . 1 . . . . . . Report Inventory 1 | . . . . . . . . . . . . . . 1 . . . . . . Scanalyzer 4 | . . . . . . . 2 . . . . . . . . . . 2 . . Insert Component 1 | . . . . . . . . . . . . . . . . . . 1 . . Analyze 1 | . . . . . . . . . . . . . . . . . . 1 . . Retrieve Study 2 | . . . . . . . 2 . . . . . . . . . . . . . Garrison Access Hacks 1 | . . . . . . . . . . . . . . . . . . . . 1 Seal Access 1 | . . . . . . . . . . . . . . . . . . . . 1 Unauthorized Hacks 31 | . 7 . 4 . . . 6 3 1 . 1 . . 3 . . 2 1 3 . Terminals 30 | . 6 . 4 . . . 6 3 1 . 1 . . 3 . . 2 1 3 . Assimilate 2 | . . . . . . . . . . . . . . . . . . 1 1 . Botnet 28 | . 6 . 4 . . . 6 3 1 . 1 . . 3 . . 2 . 2 . Fabricators . | . . . . . . . . . . . . . . . . . . . . . Repair Stations . | . . . . . . . . . . . . . . . . . . . . . Recycling Units 1 | . 1 . . . . . . . . . . . . . . . . . . . Tunnel 1 | . 1 . . . . . . . . . . . . . . . . . . . Scanalyzers . | . . . . . . . . . . . . . . . . . . . . . Garrison Access . | . . . . . . . . . . . . . . . . . . . . . Data Cores Recovered 3 | . . . . . . . 1 1 . . . . . . . . . 1 . . Used . | . . . . . . . . . . . . . . . . . . . . . Hacking Detections 47 | . 5 . 4 . . 1 5 6 2 . 2 . . 6 . . 4 5 5 2 Full Trace Events . | . . . . . . . . . . . . . . . . . . . . . Feedback Events . | . . . . . . . . . . . . . . . . . . . . . Feedback Blocked . | . . . . . . . . . . . . . . . . . . . . . Robot Schematics Acquired . | . . . . . . . . . . . . . . . . . . . . . Robots Built . | . . . . . . . . . . . . . . . . . . . . . Authchips . | . . . . . . . . . . . . . . . . . . . . . Time . | . . . . . . . . . . . . . . . . . . . . . Total Robot Build Rating . | . . . . . . . . . . . . . . . . . . . . . Part Schematics Acquired 2 | . . . . . . . . . . . . . . . . . 1 1 . . Parts Built . | . . . . . . . . . . . . . . . . . . . . . Authchips . | . . . . . . . . . . . . . . . . . . . . . Time . | . . . . . . . . . . . . . . . . . . . . . Total Part Build Rating . | . . . . . . . . . . . . . . . . . . . . . Part Studies Acquired 2 | . . . . . . . 2 . . . . . . . . . . . . . Parts Repaired 7 | . 2 . . . . . . . 1 . . . . . . . . 2 1 1 Time 367 | . 52 . . . . . . . 60 . . . . . . . 100 112 25 18 Parts Recycled . | . . . . . . . . . . . . . . . . . . . . . Recycled Matter . | . . . . . . . . . . . . . . . . . . . . . Retrieved Matter . | . . . . . . . . . . . . . . . . . . . . . Retrieved Components . | . . . . . . . . . . . . . . . . . . . . . Parts Scanalyzed 1 | . . . . . . . . . . . . . . . . . . 1 . . Part Schematics Acquired 1 | . . . . . . . . . . . . . . . . . . 1 . . Parts Damaged . | . . . . . . . . . . . . . . . . . . . . . Bothacking | -11 -10 -10 -9 -9 -9 -8 -8 -8 -7 -7 -7 -7 -7 -6 -5 -5 -4 -3 -3 -2 ------------ Run | Yrd Mat Min Mat Min Exi Min Mat Sto Fac Was Fac DSF Gar Fac Fac DSF Fac Res Qua Res Used RIF Installer . | . . . . . . . . . . . . . . . . . . . . . Robots Hacked 1 | . . . . . . . . . 1 . . . . . . . . . . . Non-combat 1 | . . . . . . . . . 1 . . . . . . . . . . . Combat . | . . . . . . . . . . . . . . . . . . . . . Robot Hacks Applied 1 | . . . . . . . . . 1 . . . . . . . . . . . find_chute 1 | . . . . . . . . . 1 . . . . . . . . . . . Relay Couplers Released . | . . . . . . . . . . . . . . . . . . . . . Fabnet Peak Effective % . | . . . . . . . . . . . . . . . . . . . . . Robots Rewired . | . . . . . . . . . . . . . . . . . . . . . Allies Hacked . | . . . . . . . . . . . . . . . . . . . . . Hacks Repelled . | . . . . . . . . . . . . . . . . . . . . . Allies | -11 -10 -10 -9 -9 -9 -8 -8 -8 -7 -7 -7 -7 -7 -6 -5 -5 -4 -3 -3 -2 -------- Run | Yrd Mat Min Mat Min Exi Min Mat Sto Fac Was Fac DSF Gar Fac Fac DSF Fac Res Qua Res Total Allies 16 | . . 4 . . . . . 10 . . . . . . . . . 1 1 . Largest Group 10 | . . 3 1 . . . . 10 6 . . . . . . . . 1 . 1 Highest-Rated Group 173 | . . 40 31 . . . . 173 96 . . . . . . . . 26 . 26 Highest-Rated Ally 31 | . . 31 31 . . . . 29 16 . . . . . . . . 26 . 26 Initial Warlord ECA Mod 1 | . . . . . . . . . . . . . . 1 . . . . . . Total Orders 3 | . . . . . . . . . 2 . . . 1 . . . . . . . STAY 1 | . . . . . . . . . 1 . . . . . . . . . . . ROAM 1 | . . . . . . . . . 1 . . . . . . . . . . . RETURN 1 | . . . . . . . . . . . . . 1 . . . . . . . Ally Attacks 113 | . . 8 17 . . . . 73 13 . . . 2 . . . . . . . Total Damage 1175 | . . 96 212 . . . . 755 112 . . . . . . . . . . . Kills 14 | . . 2 2 . . . . 10 . . . . . . . . . . . . Allies Corrupted . | . . . . . . . . . . . . . . . . . . . . . Allies Melted . | . . . . . . . . . . . . . . . . . . . . . Intel | -11 -10 -10 -9 -9 -9 -8 -8 -8 -7 -7 -7 -7 -7 -6 -5 -5 -4 -3 -3 -2 ------- Run | Yrd Mat Min Mat Min Exi Min Mat Sto Fac Was Fac DSF Gar Fac Fac DSF Fac Res Qua Res Active Infowar (turns) 2134 | 6 137 . . . . . . . 186 50 28 31 . . . . 273 504 430 489 Optics 1696 | . . . . . . . . . . . . . . . . . 273 504 430 489 Sensors 1615 | . . . . . . . . . 186 49 28 31 . . . . 272 504 333 212 Structural 212 | . . . . . . . . . 180 32 . . . . . . . . . . Seismic 143 | 6 137 . . . . . . . . . . . . . . . . . . . T.N.C. 3 | . . . . . . . . . . . . . . . . . . . . 3 ECM 34 | . . . . . . . . . . . . . . . . . . . . 34 Robot Analysis Total 5 | . . . 4 . . . . 1 . . . . . . . . . . . . Derelict Logs Recovered 5 | . . 3 . 2 . . . . . . . . . . . . . . . . Drone Launches 3 | . . . . . . . . . . . . . 3 . . . . . . . Drone Recoveries 3 | . . . . . . . . . . . . . 3 . . . . . . . Exploration | -11 -10 -10 -9 -9 -9 -8 -8 -8 -7 -7 -7 -7 -7 -6 -5 -5 -4 -3 -3 -2 ------------- Run | Yrd Mat Min Mat Min Exi Min Mat Sto Fac Was Fac DSF Gar Fac Fac DSF Fac Res Qua Res Turns Passed 10017 | 20 1348 936 442 260 247 425 2144 1622 222 50 28 31 105 294 1 50 369 504 430 489 Spaces Moved 8866 | 13 758 607 307 215 215 300 1070 829 388 127 110 48 123 517 3 89 758 901 652 836 Core 4 | . . . . . . . . . . . . . . . . . . . . 4 Treads 245 | . 32 . . . . . 206 7 . . . . . . . . . . . . Legs . | . . . . . . . . . . . . . . . . . . . . . Wheels 4086 | 13 726 607 307 215 215 300 864 822 17 . . . . . . . . . . . Hover . | . . . . . . . . . . . . . . . . . . . . . Flight 4531 | . . . . . . . . . 371 127 110 48 123 517 3 89 758 901 652 832 Fastest Speed 21 | 95 95 145 115 115 115 115 120 105 25 25 25 25 25 28 28 28 25 25 21 21 Average Speed 78 | 95 128 145 115 115 115 119 152 124 29 25 25 52 28 28 28 28 26 25 25 28 Slowest Speed 240 | 95 240 145 115 115 115 120 240 240 120 25 25 102 98 28 28 28 97 28 101 102 Overloaded Moves 82 | . . . . . . . . . . . . . . . . . . . 7 75 Propulsion Burnouts . | . . . . . . . . . . . . . . . . . . . . . Robots Hopped 66 | . . . . . . . . . . 3 . . . 2 . 1 20 11 4 25 Potential Cave-ins 2 | . . . . . . . . . . . . . . . . . . 2 . . Cave-ins Triggered . | . . . . . . . . . . . . . . . . . . . . . Teleports 1 | . . . . . . . . . . . . . . . . . . . . 1 Exploration Rate (%) 47 | 3 98 95 33 45 54 67 66 87 11 75 5 44 29 19 . 88 21 24 50 34 Regions Visited 20 Branch Regions 6 Pre-discovered Areas 4 | . 1 1 . . 1 . . 1 . . . . . . . . . . . . Known Exits Taken 7 | . . . 1 . . . . . . . 1 . . 1 1 . 1 1 1 . Unknown Exits Taken 8 | 1 1 1 . 1 1 1 1 1 . . . . . . . . . . . . Scrap Searched 1 | . . 1 . . . . . . . . . . . . . . . . . . Spaces Dug 89 | . . . . . . . . . 1 . . . . . . . 12 59 6 11 Terrain Destroyed 215 | . 28 9 1 . . 1 2 5 1 . . . . . . . 12 139 6 11 Melee 20 | . . . . . . . . . 1 . . . . . . . 2 . 6 11 Projectile 9 | . . . 1 . . 1 2 5 . . . . . . . . . . . . AOE 186 | . 28 9 . . . . . . . . . . . . . . 10 139 . . Terrain Rammed . | . . . . . . . . . . . . . . . . . . . . . Walls Destroyed . | . . . . . . . . . . . . . . . . . . . . . Machines Disabled . | . . . . . . . . . . . . . . . . . . . . . Actions | -11 -10 -10 -9 -9 -9 -8 -8 -8 -7 -7 -7 -7 -7 -6 -5 -5 -4 -3 -3 -2 --------- Run | Yrd Mat Min Mat Min Exi Min Mat Sto Fac Was Fac DSF Gar Fac Fac DSF Fac Res Qua Res Total 10813 | 18 973 634 370 221 214 330 1332 1150 493 140 109 53 172 664 2 112 899 1142 829 956 Wait 925 | . 95 . 14 . . . 57 56 71 7 . . 5 146 . 13 120 210 80 51 Move 8724 | 12 757 606 306 214 214 299 1069 829 388 121 109 47 122 512 2 86 720 878 643 790 Hop 58 | . . . . . . . . . . 2 . . . 2 . 1 17 11 4 21 Pick Up 99 | . 11 6 9 1 . 2 15 18 3 3 . 1 1 2 . . 7 5 9 6 Fast Attach 49 | 1 4 . 2 . . . 4 10 . . . . . . . . 5 9 6 8 Attach 49 | . 3 . 2 . . 2 6 3 7 . . . 2 . . . 11 3 5 5 Detach 35 | . 1 . 2 . . . 3 4 . . . . 2 . . . 7 2 7 7 Swap 134 | 2 13 6 7 1 . 1 21 26 8 4 . 3 5 . . . 2 8 11 16 Drop 140 | 2 12 2 10 1 . 4 22 39 11 3 . 2 3 2 . . 4 2 18 3 Fire 447 | 1 77 14 18 4 . 22 132 144 . . . . 10 . . . 2 14 9 . Melee 101 | . . . . . . . . 1 5 . . . 5 . . . 4 . 37 49 Ram . | . . . . . . . . . . . . . . . . . . . . . Kick . | . . . . . . . . . . . . . . . . . . . . . Crush 4 | . . . . . . . 3 1 . . . . . . . . . . . . Escape Stasis 45 | . . . . . . . . 16 . . . . 17 . . 12 . . . . Rewire 3 | . . . . . . . . 3 . . . . . . . . . . . . Trap . | . . . . . . . . . . . . . . . . . . . . . Miscellaneous . | . . . . . . . . . . . . . . . . . . . . . Route ------- -11/Scrapyard -10/Materials (discovered 5 exits: *Mat x3 / *Min x2) -10/Mines (discovered 2 exits: *Mat x2) -9/Materials (discovered 3 exits: *Mat / *Min x2) -9/Mines -9/Exiles -8/Mines (discovered 2 exits: *Mat x2) -8/Materials (discovered 2 exits: *Fac / *Sto) -8/Storage -7/Factory -7/Waste -7/Factory -7/DSF -7/Garrison -6/Factory -5/Factory -5/DSF -4/Factory -3/Research (discovered 2 exits: *Arm / *Qua) -3/Quarantine -2/Research History --------- Turn | Location | Event 6 | -11/Scrapyard | Discovered new exit (range 3) 21 | -11/Scrapyard | Entered Materials 217 | -10/Materials | Discovered new exit (range 5) 305 | -10/Materials | Build established: Mutant 436 | -10/Materials | Discovered new exit (range 16) 522 | -10/Materials | Core integrity fell below 50% 632 | -10/Materials | Repaired Assault Rifle 660 | -10/Materials | Repaired Assault Rifle 823 | -10/Materials | Discovered new exit (range 7) 1027 | -10/Materials | Discovered new exit (range 17) 1027 | -10/Materials | Central database locked down 1270 | -10/Materials | Discovered new exit (range 16) 1369 | -10/Materials | Entered Mines 1371 | -10/Mines | Assisted by bots powering up and referring to "LRC-V3" 1404 | -10/Mines | Received a Rocket Launcher from a helpful Derelict 1468 | -10/Mines | Discovered new exit (range 4) 1604 | -10/Mines | Discovered new exit (range 12) 1652 | -10/Mines | Lost 3 allies 1747 | -10/Mines | Escorted by a lone wolf Derelict 1767 | -10/Mines | Learned location of Storage (-8) 1892 | -10/Mines | Learned 2 Materials zone layouts 1908 | -10/Mines | Learned Materials trap positions 1995 | -10/Mines | Found the Drone Emporium 2002 | -10/Mines | Found Prototype Device 2002 | -10/Mines | Identified Thief Drone Bay 2305 | -10/Mines | Entered Materials 2305 | -9/Materials | Accompanied by 1 ally 2305 | -9/Materials | Evolved 2 slots: Propulsion x1, Utility x1 2306 | -9/Materials | Identified exit to Mines 2308 | -9/Materials | Loaded intel: 16 trap records 2656 | -9/Materials | Discovered new exit (range 14) 2747 | -9/Materials | Entered Mines 2786 | -9/Mines | Deemed a non-threat by the Exiles lab entrance 2786 | -9/Mines | Discovered new exit (range 5) 2848 | -9/Mines | Learned Materials terminal intel 2893 | -9/Mines | Learned Materials stockpile data 2932 | -9/Mines | Met a Derelict who couldn't figure out how to use a Trap Extractor 3007 | -9/Mines | Entered Exiles 3035 | -9/Exiles | Met 8R-AWN 3055 | -9/Exiles | Met EX-HEX 3091 | -9/Exiles | Met EX-BIN 3120 | -9/Exiles | Met EX-DEC 3127 | -9/Exiles | Learned location of Zion (-7) 3243 | -9/Exiles | Discovered new exit (range 10) 3254 | -9/Exiles | Entered Mines 3286 | -8/Mines | Found a Scrap Suit stashed away for nefarious purposes 3633 | -8/Mines | Discovered new exit (range 6) 3669 | -8/Mines | Discovered new exit (range 10) 3679 | -8/Mines | Entered Materials 3679 | -8/Materials | Evolved 2 slots: Propulsion x1, Utility x1 3681 | -8/Materials | Loaded intel: 12 terminal locations 4903 | -8/Materials | Discovered new exit (range 5) 5413 | -8/Materials | Discovered new exit (range 7) 5469 | -8/Materials | Central database locked down 5823 | -8/Materials | Entered Storage 6015 | -8/Storage | Core integrity fell below 50% 6031 | -8/Storage | Lost 4 parts (1p2n1w) 6712 | -8/Storage | Assisted by bots powering up and referring to "LRC-V3" 6787 | -8/Storage | Learned location of Armory (-3) 7017 | -8/Storage | Build established: Commander-Mutant 7183 | -8/Storage | Core integrity fell below 20% 7284 | -8/Storage | Met 01-MTF 7353 | -8/Storage | Garrison activated, responded to threat 7410 | -8/Storage | Discovered new exit (range 16) 7445 | -8/Storage | Entered Factory 7445 | -7/Factory | Accompanied by 6 allies 7445 | -7/Factory | Evolved 2 slots: Propulsion x1, Utility x1 7606 | -7/Factory | Repaired Enh. Autogun 7619 | -7/Factory | Discovered new exit (range 5) 7667 | -7/Factory | Manually triggered Chute Trap 7667 | -7/Factory | Sucked down chute 7667 | -7/Factory | Entered Waste 7687 | -7/Waste | Spotted C-40 Crusher 7690 | -7/Waste | Spotted C-40 Crusher 7695 | -7/Waste | Spotted C-40 Crusher 7702 | -7/Waste | Spotted C-40 Crusher 7703 | -7/Waste | Spotted C-40 Crusher 7714 | -7/Waste | Discovered new exit (range 11) 7716 | -7/Waste | Identified exit to Factory 7717 | -7/Waste | Entered Factory 7719 | -7/Factory | Identified exit to DSF 7745 | -7/Factory | Entered DSF 7767 | -7/DSF | Discovered new exit (range 12) 7776 | -7/DSF | Identified exit to Garrison 7776 | -7/DSF | Entered Garrison 7834 | -7/Garrison | Triggered checkpoint 7878 | -7/Garrison | Discovered new exit (range 11) 7881 | -7/Garrison | Identified exit to Factory 7881 | -7/Garrison | Entered Factory 7881 | -6/Factory | Evolved 2 slots: Propulsion x1, Utility x1 8075 | -6/Factory | Build established: Sprinter 8160 | -6/Factory | Discovered new exit (range 15) 8175 | -6/Factory | Identified exit to Factory 8175 | -6/Factory | Entered another Factory area 8175 | -5/Factory | Evolved 2 slots: Power x1, Propulsion x1 8176 | -5/Factory | Identified exit to DSF 8176 | -5/Factory | Entered DSF 8194 | -5/DSF | Additional patrols routed to DSF 8223 | -5/DSF | Discovered new exit (range 11) 8226 | -5/DSF | Identified exit to Factory 8226 | -5/DSF | Entered Factory 8226 | -4/Factory | Evolved 2 slots: Utility x2 8593 | -4/Factory | Discovered new exit (range 4) 8593 | -4/Factory | Identified exit to Research 8595 | -4/Factory | Entered Research 8595 | -3/Research | Evolved 2 slots: Utility x2 8617 | -3/Research | Lost 5 parts (1p1n2u1w) 8739 | -3/Research | Repaired Broken Cld. Cesium-ion Thruster? 9042 | -3/Research | Build established: Hacker-Scout 9059 | -3/Research | Repaired Lgt. Antimatter Reactor 9083 | -3/Research | Discovered new exit (range 16) 9095 | -3/Research | Search patrols dispatched 9096 | -3/Research | Discovered new exit (range 10) 9097 | -3/Research | Identified exit to Armory 9098 | -3/Research | Identified exit to Quarantine 9099 | -3/Research | Entered Quarantine 9129 | -3/Quarantine | Repaired Imp. Flight Unit 9164 | -3/Quarantine | Central database locked down 9231 | -3/Quarantine | Found Alien Slashing Weapon 9231 | -3/Quarantine | Identified Sigix Broadsword 9254 | -3/Quarantine | Found Alien Artifact 9331 | -3/Quarantine | Found Alien Artifact 9366 | -3/Quarantine | Watched by a mysterious "MATRIX" hacker. 9435 | -3/Quarantine | Found Alien Artifact 9436 | -3/Quarantine | Identified Subatomic Replicator 9436 | -3/Quarantine | Used Subatomic Replicator to replicate Sigix Broadsword 9463 | -3/Quarantine | Found Alien Impact Weapon 9463 | -3/Quarantine | Identified Core Stripper 9469 | -3/Quarantine | Found Prototype Processor 9469 | -3/Quarantine | Identified Exp. Terrain Scan Processor 9521 | -3/Quarantine | Discovered new exit (range 4) 9527 | -3/Quarantine | Identified exit to Research 9529 | -3/Quarantine | Entered Research 9529 | -2/Research | Accompanied by 1 ally 9529 | -2/Research | Evolved 2 slots: Propulsion x1, Utility x1 9579 | -2/Research | Repaired Adv. Shield Generator 9595 | -2/Research | Identified Transdimensional Reconstructor 9595 | -2/Research | Warped through subspace 9710 | -2/Research | Spotted B-90 Cyclops 9958 | -2/Research | Spotted B-90 Cyclops 9993 | -2/Research | Spotted B-90 Cyclops 10018 | -2/Research | Self-destructed Last Messages --------------- 09998_ Penetrated by Slug. 10002_ Slug penetrates Wall. 10003_ Acquired Quantum Reactor. 10003_ K-01 Serf cleans the Recycling Unit. 10004_ Slug penetrates Wall. 10007_ Field Propulsion Array destroyed. 10007_ Slug penetrates Wall. 10010_ Acquired Imp. System Shield. 10010_ Slug penetrates Wall. 10014_ Field Propulsion Array destroyed. 10015_ Dropped Med. Storage Unit. 10015_ Penetrated by Slug. 10015_ Lrn. Sensor Array destroyed. 10016_ Triggered Blade Trap. 10016_ Massive razor-sharp blades shoot up from within the floor. 10016_ Powered Hammer severed. 10016_ Imp. VTOL Module severed. 10017_ Penetrated by Slug. 10018_ Slug penetrates Wall. Map ----- +----------------------------------------------------+ | ?????????????????????????????????????????????????? | | ?????????????????????????????????????????????????? | | ?????????????????????????????????????????????????? | | ?????????????????????????????????????????????????? | | ?????????????????????????????????????????????????? | | ?????????????????????????????????????????????????? | | ?????????????????????????????????????????????????? | | ?????????????????????????????????????????????????? | | ???????????????????????????????##????????????????? | | ?????????????????????????????? #????????????????? | | ?????????????????????????????? #????????????????? | | ????????????????????????????? #????????????????? | | ????????????????????????????? #????????????????? | | ????????????????????????????? #????????????????? | | ???????????????????????????? #????#???????????? | | ???????????????????????????? +??? #???????????? | | ???????????????????????????? #?? #???????????? | | ???????????????????????????? #?? +???????????? | | ???????????????????????????? ? #???????????? | | ??????????????????????????? ?? #???????????? | | ??????????????????????????? ??? #???????????? | | ????? ######+############;#### ######+##???? | | ????? u ??? | | ????# k ??? | | ????# ?? | | ????# @ ?? | | ??????????????############ = #???????????? | | ?????????????????????????# #???????????? | | ???????????????########### === #???????????? | | ???????????????# #/= == #???????????? | | ???????????????# # == #???????????? | | ???????????????# """ #!! #???????????? | | ???????????????# "Y" +!! #???????????? | | ???????????????# " " #!! #???????????? | | ???????????????# # !=#?????#?????? | | ???????????????# # ! ##### ###### | | ???????????????# # h | | ???????????????########### | | ?????????????????????????# "" | | ??????????##########?????#"" k w | | ??????????# #?????#"T ###########?? | | ??????????# = #?????#"" #???????????? | | ??????????# #?????#"" #???????????? | | ??????????# #######"" #???????????? | | ??????????# """ + #???????????? | | ??????????# """ ####### #???????????? | | ??????????# """ #?????# #???????????? | | ??????????# #?????### ### #???????????? | | ??????????# #???????# #?? #???????????? | | ????####+######+###############?? #???????????? | +----------------------------------------------------+ Best States ------------- Heat Dissipation 68 Coolant Potential 80 Energy Generation 35 Energy Capacity 280 Matter Stores 300 Matter Capacity 300 Sight Range 22 Robot Scan Range 18 Terrain Scan Density 1010 ECM Strength 2 Additional Mass Support 9 Base Temperature (-) 200 Armor Coverage 450 Resistance: KI 30 Utility Shielding 90 Evasion (%) 65 Targeting Accuracy 5 Melee Accuracy 8 Armor Integrity Analysis 40 Recoil Reduction 3 Offensive Hacking 32 Defensive Hacking 22 Item Schematics ----------------- Cmb. Linear Gravjet | -4/Factory | Hacked Cld. Cesium-ion Thruster | -3/Research | Scanalyzed Robot Schematics ------------------ None Fabricated ------------ Nothing Repaired ---------- Assault Rifle | 39% | -10/Materials Assault Rifle | 50% | -10/Materials Enh. Autogun | 94% | -7/Factory Cld. Cesium-ion Thruster | 4% | -3/Research | Broken Lgt. Antimatter Reactor | 17% | -3/Research Imp. Flight Unit | 30% | -3/Quarantine Adv. Shield Generator | 36% | -2/Research Studied --------- Cesium-ion Thruster | -8/Materials | Hacked Com. Wheel | -8/Materials | Hacked Alien Tech Used ----------------- Sigix Broadsword Subatomic Replicator Core Stripper Transdimensional Reconstructor Achievements -------------- None Challenges ------------ None Game ------ Seed IntegrityTerrorSlayer Manual? 0 Play Time 02:45:58 Cumulative 207.4 hours Start 2026.04.22 @ 16:52:46 End 2026.04.23 @ 00:11:09 Sessions 3 Manual Loads 0 Difficulty Rogue Special Mode None Game No. 122 Rogue 122 Adventurer 0 Explorer 0 Win Type - Total 7 Types 3/0/2/1/0/0/0/1/0/0 Lore% 65 Gallery% 59 Achievement% 53 Wizard Run 0 Options --------- Layout 2 ASCII 0 Keyboard 1 Movement Arrows Keybinds 0 Fullscreen 2 Font 24/Terminus Map View 50x44 Zoom Use 0% Tactical HUD 1 Map Filters NONE Filters NONE Steam 1 RUN: c1597943-1605-412d-8437-d2dcbbfde48c